lending/lending_fUSD_20240703
["ID","MTS","AMOUNT","RATE_DAILY","PERIOD"]
[331046318,1720042232331,-275995.276103,0.00016439,7]
[331046319,1720042232340,-1447.78954909,0.00016868,2]
[331046320,1720042232349,-1021.72851942,0.00016968,2]
[331046321,1720042232358,-422.61,0.00017132,2]
[331046322,1720042232367,-1447.78954906,0.00017534,2]
[331046323,1720042232376,-499.99,0.00017597,2]
[331046324,1720042232385,-1021.72851942,0.00017597,2]
[331046325,1720042232394,-3037.806753,0.00017889,2]
[331046326,1720042232403,-1447.78954906,0.00018199,2]
[331046327,1720042232412,-3504.0,0.000182,5]
[331046328,1720042232421,-1021.72851942,0.00018226,2]
[331046329,1720042232430,-689.73177959,0.00018739,2]
[331046330,1720042232440,-191.84,0.00018793,2]
[331046331,1720042232449,-1021.72851942,0.00018855,2]
[331046332,1720042232458,-1447.78954906,0.00018865,2]
[331046333,1720042232467,-2318.96,0.00018964,2]
[331046334,1720042232476,-2478.59,0.00018979,2]
[331046335,1720042232486,-1250.0,0.00019,2]
[331046336,1720042232495,-264.06161066,0.00019069,2]
[331046337,1720042232505,-500.0,0.0001907,2]
[331046338,1720042232519,-250.0,0.00019115,2]
[331046339,1720042232529,-170.22,0.00019346,2]
[331046340,1720042232538,-422.61,0.00019396,2]
[331046341,1720042232547,-1021.72851942,0.00019483,2]
[331046342,1720042232558,-250.0,0.00019501,2]
[331046343,1720042232568,-250.0,0.00019501,2]
[331046344,1720042232577,-1447.78954906,0.0001953,2]
[331046345,1720042232586,-167.47,0.00019579,2]
[331046346,1720042232599,-807.3,0.00019659,2]
[331046347,1720042232609,-1021.72851942,0.00020112,2]
[331046348,1720042232618,-1447.78954906,0.00020196,2]
[331046349,1720042232627,-3886.49911,0.0002034,2]
[331046350,1720042232636,-176.876545,0.0002034,2]
[331046351,1720042232646,-2698.727343,0.0002034,2]
[331046352,1720042232655,-3694.431117,0.0002034,2]
[331046353,1720042232664,-3886.49911,0.00020595,2]
[331046354,1720042232673,-2698.727343,0.00020595,2]
[331046355,1720042232682,-3694.431117,0.00020595,2]
[331046356,1720042232691,-400.0,0.000206,7]
[331046358,1720042232700,-800.0,0.000207,7]
[331046359,1720042232709,-1021.72851942,0.00020741,2]
[331046361,1720042232718,-1200.0,0.000208,7]
[331046363,1720042232727,-3886.49911,0.00020849,2]
[331046365,1720042232736,-2698.727343,0.00020849,2]
[331046367,1720042232745,-3694.431117,0.00020849,2]
[331046368,1720042232754,-1447.78954906,0.00020861,2]
[331046369,1720042232763,-1600.0,0.000209,7]
[331046370,1720042232773,-500.0,0.00020942,2]
[331046371,1720042232783,-225.19167095,0.00021,2]
[331046372,1720042232792,-158.75288572,0.00021063,2]
[331046373,1720042232800,-314.61458282,0.00021063,2]
[331046374,1720042232810,-994.3177892,0.00021069,2]
[331046375,1720042232819,-1118.24635504,0.0002107,2]
[331046376,1720042232829,-3012.5227,0.00021096,2]
[331046377,1720042232838,-501.1919,0.00021096,2]
[331046378,1720042232847,-3886.49911,0.00021103,2]
[331046379,1720042232856,-2698.727343,0.00021103,2]
[331046380,1720042232865,-3694.431117,0.00021103,2]
[331046381,1720042232874,-151.0,0.00021122,2]
[331046382,1720042232883,-219.52211462,0.0002115,2]
[331046383,1720042232892,-68943.3259679,0.00021154,2]
[331046384,1720042232901,-300.0,0.00021163,2]
[331046385,1720042232910,-300.0,0.00021163,2]
[331046386,1720042232919,-300.0,0.00021163,2]
[331046387,1720042232928,-39380.1465,0.00021164,2]
[331046388,1720042232937,-4321.8883,0.00021164,2]
[331046389,1720042232946,-107581.97736405,0.00021164,2]
[331046390,1720042232958,-13540.79721226,0.00021164,2]
[331046391,1720042232979,-1.81030209,0.00021164,2]
[331046392,1720042233002,-352.90432574,0.00019565,2]
[331046393,1720042233011,-1328.45992444,0.00021164,2]
[331046400,1720042238248,-166.49751087,0.00021154,2]
[331046401,1720042238257,-13294.21594148,0.00021164,2]
[331046402,1720042238422,-7236.63084749,0.00021164,2]
[331046403,1720042238435,-504.3514221,0.00021164,2]
[331046404,1720042238495,-5997.85954026,0.00021164,2]
[331046407,1720042238511,-622.32771652,0.00021164,2]
[331046521,1720042240562,-94891.56972931,0.00021164,2]
[331046522,1720042240572,-8617.91574599,0.00021251,2]
[331046523,1720042240585,-281.1116,0.00021258,2]
[331046524,1720042240595,-500.0,0.00021258,2]
[331046525,1720042240604,-8617.91574599,0.0002127,2]
[331046526,1720042240614,-17235.831492,0.0002128,2]
[331046527,1720042240623,-5738.70414791,0.00021284,2]
[331046528,1720042240633,-300.0,0.00021289,2]
[331046529,1720042240643,-300.0,0.00021289,2]
[331046530,1720042240652,-300.0,0.00021289,2]
[331046531,1720042240662,-6059.75860699,0.0002129,2]
[331046532,1720042240690,-11338.36342012,0.0002129,2]
[331046533,1720042240702,-736.10038563,0.0002129,2]
[331046534,1720042240714,-1139.11643078,0.0002129,2]
[331046535,1720042240726,-1182.3902614,0.0002129,2]
[331046536,1720042240737,-9772.39013029,0.0002129,2]
[331046537,1720042240747,-1698.0,0.000213,2]
[331046538,1720042240756,-500.0,0.00021318,2]
[331046539,1720042240766,-500.0,0.00021323,2]
[331046540,1720042240776,-200.0,0.00021323,2]
[331046541,1720042240786,-500.0,0.00021326,2]
[331046542,1720042240796,-4110.12141419,0.00021337,2]
[331046543,1720042240832,-364.58602246,0.00021337,2]
[331046544,1720042240844,-4143.20830934,0.00021337,2]
[331046545,1720042240853,-150.0,0.00021342,2]
[331046546,1720042240862,-150.0,0.00021342,2]
[331046547,1720042240872,-150.0,0.00021342,2]
[331046548,1720042240881,-150.0,0.00021342,2]
[331046549,1720042240890,-17235.831492,0.00021354,2]
[331046550,1720042240899,-2187.88519795,0.00021357,2]
[331046551,1720042240911,-1698.61391205,0.00021357,2]
[331046552,1720042240921,-555.01001277,0.00021357,2]
[331046553,1720042240932,-2143.71733023,0.00021357,2]
[331046554,1720042240942,-687.92266977,0.00021357,2]
[331046555,1720042241015,-523.5974776,0.00021357,2]
[331046556,1720042241027,-1880.85,0.00021357,2]
[331046557,1720042241039,-325.93999993,0.00021357,2]
[331046558,1720042241066,-276.1209697,0.00021357,2]
[331046559,1720042241074,-381.68842988,0.00021364,2]
[331046560,1720042241090,-16854.14306212,0.00021364,2]
[331046561,1720042241099,-1021.72851942,0.0002137,2]
[331046562,1720042241108,-300.0,0.00021373,2]
[331046563,1720042241117,-300.0,0.00021373,2]
[331046564,1720042241128,-300.0,0.00021373,2]
[331046565,1720042241139,-51707.4944759,0.00021374,2]
[331046566,1720042241149,-211.93875,0.0002138,2]
[331046567,1720042241159,-441.618869,0.0002138,2]
[331046568,1720042241168,-151.0,0.0002138,2]
[331046569,1720042241178,-8617.91574599,0.0002138,2]
[331046570,1720042241187,-300.0,0.00021383,2]
[331046572,1720042241196,-300.0,0.00021383,2]
[331046574,1720042241205,-162.933178,0.00021384,2]
[331046576,1720042241215,-162.933178,0.00021384,2]
[331046578,1720042241224,-342.201502,0.00021384,2]
[331046580,1720042241234,-342.201502,0.00021384,2]
[331046583,1720042241244,-151.0,0.00021384,2]
[331046585,1720042241254,-151.0,0.00021384,2]
[331046587,1720042241264,-168.232533,0.00021384,2]
[331046606,1720042241433,-154.178247,0.00021384,2]
[331046609,1720042241454,-154.968708,0.00021384,2]
[331046611,1720042241463,-168.232533,0.00021384,2]
[331046613,1720042241472,-154.178247,0.00021384,2]
[331046615,1720042241481,-151.0,0.00021384,2]
[331046617,1720042241491,-151.0,0.00021384,2]
[331046619,1720042241500,-207.528849,0.00021384,2]
[331046621,1720042241511,-151.0,0.00021384,2]
[331046623,1720042241521,-207.528849,0.00021384,2]
[331046625,1720042241530,-151.0,0.00021384,2]
[331046627,1720042241540,-151.0,0.00021384,2]
[331046629,1720042241550,-177.23233,0.00021384,2]
[331046630,1720042241559,-177.23233,0.00021384,2]
[331046631,1720042241568,-151.0,0.00021384,2]
[331046632,1720042241577,-151.0,0.00021384,2]
[331046633,1720042241587,-90016.5009,0.00021384,2]
[331046634,1720042241597,-1838.7809,0.00021384,2]
[331046635,1720042241606,-391.7049,0.00021385,2]
[331046636,1720042241616,-1005.0,0.00021387,2]
[331046637,1720042241625,-1000.0,0.0002139,2]
[331046638,1720042241634,-180.0,0.00021397,2]
[331046639,1720042241643,-220.28,0.00021397,3]
[331046640,1720042241652,-171.62856957,0.000214,2]
[331046642,1720042241661,-166.8365015,0.000214,2]
[331046644,1720042241670,-7500.0,0.000214,2]
[331046646,1720042241680,-158.75288572,0.000214,2]
[331046648,1720042241689,-250.8755825,0.000214,2]
[331046650,1720042241698,-3049.2618206,0.000214,2]
[331046652,1720042241708,-151.0,0.00021415,2]
[331046654,1720042241717,-5738.70414787,0.0002143,2]
[331046656,1720042241726,-12359.5077373,0.00021458,2]
[331046658,1720042241737,-490.3621,0.00021458,2]
[331046785,1720042244576,-441.618869,0.0002138,2]
[331046786,1720042244587,-4385.9616547,0.00021458,2]
[331046787,1720042244597,-869.09,0.00021458,3]
[331046788,1720042244607,-8617.91574599,0.00021468,2]
[331046789,1720042244616,-150.5,0.0002147,30]
[331046790,1720042244626,-17235.831492,0.0002147,2]
[331046791,1720042244635,-300.0,0.00021479,2]
[331046792,1720042244644,-300.0,0.00021479,2]
[331046793,1720042244653,-150.5,0.0002148,30]
[331046794,1720042244662,-8617.91574599,0.00021482,2]
[331046795,1720042244671,-151.0,0.00021488,2]
[331046796,1720042244680,-151.0,0.00021488,2]
[331046797,1720042244689,-151.0,0.00021488,2]
[331046798,1720042244698,-151.0,0.00021488,2]
[331046799,1720042244707,-151.0,0.00021488,2]
[331046800,1720042244717,-150.5,0.0002149,30]
[331046801,1720042244726,-150.5,0.0002149,30]
[331046802,1720042244735,-151.0,0.0002149,2]
[331046803,1720042244744,-151.0,0.0002149,2]
[331046804,1720042244754,-151.0,0.0002149,2]
[331046805,1720042244763,-151.0,0.0002149,2]
[331046806,1720042244773,-151.0,0.0002149,2]
[331046807,1720042244782,-151.0,0.00021492,2]
[331046808,1720042244792,-151.0,0.00021492,2]
[331046809,1720042244801,-182.554306,0.00021492,2]
[331046810,1720042244811,-151.0,0.00021492,2]
[331046811,1720042244819,-151.0,0.00021492,2]
[331046812,1720042244829,-162.933178,0.00021492,2]
[331046813,1720042244838,-162.933178,0.00021492,2]
[331046814,1720042244847,-1674.1277842,0.00021492,2]
[331046815,1720042244857,-342.201502,0.00021492,2]
[331046816,1720042244866,-342.201502,0.00021492,2]
[331046817,1720042244876,-151.0,0.00021492,2]
[331046818,1720042244885,-342.201502,0.00021492,2]
[331046819,1720042244895,-342.201502,0.00021492,2]
[331046820,1720042244904,-151.0,0.00021492,2]
[331046821,1720042244913,-151.0,0.00021492,2]
[331046822,1720042244922,-151.0,0.00021492,2]
[331046823,1720042244932,-151.0,0.00021492,2]
[331046824,1720042244941,-168.232533,0.00021492,2]
[331046825,1720042244950,-168.232533,0.00021492,2]
[331046826,1720042244959,-154.178247,0.00021492,2]
[331046827,1720042244969,-154.178247,0.00021492,2]
[331046828,1720042244977,-168.232533,0.00021492,2]
[331046829,1720042244987,-168.232533,0.00021492,2]
[331046830,1720042244995,-154.178247,0.00021492,2]
[331046831,1720042245004,-154.178247,0.00021492,2]
[331046832,1720042245013,-554.9539332,0.00021492,2]
[331046833,1720042245021,-262.39025,0.00021492,2]
[331046834,1720042245030,-151.0,0.00021492,2]
[331046835,1720042245039,-151.0,0.00021492,2]
[331046836,1720042245048,-207.528849,0.00021492,2]
[331046837,1720042245056,-207.528849,0.00021492,2]
[331046838,1720042245065,-151.0,0.00021492,2]
[331046839,1720042245074,-151.0,0.00021492,2]
[331046840,1720042245083,-207.528849,0.00021492,2]
[331046841,1720042245091,-207.528849,0.00021492,2]
[331046842,1720042245100,-7985.81664102,0.00021492,2]
[331046843,1720042245120,-289.60000006,0.00021492,2]
[331046852,1720042246439,-2378.67702084,0.00021492,2]
[331046853,1720042246451,-3214.27958353,0.00021492,2]
[331046854,1720042246461,-756.71535306,0.00021492,2]
[331046855,1720042246551,-380.37468551,0.00021492,2]
[331046856,1720042246562,-255.41169921,0.00021492,2]
[331046857,1720042246572,-274.31214065,0.00021492,2]
[331046858,1720042246586,-487.94323696,0.00021492,2]
[331046859,1720042246652,-1188.35,0.00021492,2]
[331046867,1720042541406,2661.2597159,0.000112,2]
[331046868,1720042541432,1972.58048883,0.000112,2]
[331046869,1720042541452,20000.0,0.000112,2]
[331046870,1720042541474,20000.0,0.000112,2]
[331046871,1720042541495,366.15979527,0.000112,2]
[331046873,1720042591247,6046.01978843,0.000112,2]
[331046874,1720042595731,1367.01150639,0.000112,2]
[331046875,1720042600840,173.47662128,0.000112,2]
[331046877,1720042617173,2455389.7021807,0.000225,120]
[331046883,1720042789345,3116.81208306,0.00011199,2]
[331046897,1720043186980,2003.878178,0.00011199,2]
[331046908,1720043252871,285.56803873,0.00011199,2]
[331046913,1720043366009,1414.72,0.00024658,60]
[331046916,1720043413322,155.0,0.00011199,2]
[331046923,1720043431623,-270.03107511,0.00013448,2]
[331046924,1720043431635,-889.8302,0.00013448,2]
[331046925,1720043431766,-165.63112189,0.00013448,2]
[331046926,1720043431775,-363.75372231,0.00013472,2]
[331046927,1720043431784,-665.56549359,0.00013574,2]
[331046928,1720043431798,-157.51550643,0.0001383,2]
[331046929,1720043431808,-150.0,0.00013973,2]
[331046930,1720043431817,-18670.83316824,0.00014,2]
[331046931,1720043431828,-70220.05670558,0.00014,2]
[331046932,1720043431840,-1242.4238349,0.00014,2]
[331046933,1720043431890,-9299.18366164,0.00014,2]
[331046985,1720043437607,-19877.93795595,0.00014,2]
[331046986,1720043437759,-1567.583997,0.00014,2]
[331046987,1720043437772,-560.56911395,0.00014,2]
[331046988,1720043437784,-250479.00657782,0.00014,2]
[331046989,1720043439919,-3355.47849042,0.00014,2]
[331046990,1720043439931,-2108.27106843,0.00014,2]
[331046991,1720043439943,-423.12999708,0.00014,2]
[331046992,1720043440140,-586.44,0.00014,2]
[331046993,1720043440286,-543.2888,0.00014,2]
[331047002,1720043442635,-13501.70307668,0.00014,2]
[331047003,1720043442647,-701.11,0.00014,2]
[331047004,1720043442758,-1858.3075,0.00014,2]
[331047005,1720043442875,-3397.93999999,0.00014,2]
[331047013,1720043445616,-1084.07126323,0.00014,2]
[331047015,1720043445628,-5020.75610878,0.00014,2]
[331047016,1720043445768,-7532.16357933,0.00014,2]
[331047017,1720043446097,-12041.32514248,0.00014,2]
[331047059,1720044212030,-150.5,0.00021887,30]
[331047060,1720044212055,-150.5,0.00021897,30]
[331047061,1720044212080,-150.5,0.00021907,30]
[331047062,1720044212107,-222.12,0.00021907,30]
[331047063,1720044213009,-1050.0,0.00023874,30]
[331047064,1720044213038,-1049.9999,0.00024524,30]
[331047065,1720044213068,-2261.0,0.000249,30]
[331047066,1720044213092,-668.39538166,0.00025,30]
[331047067,1720044213119,-921.97483952,0.00025,30]
[331047068,1720044213145,-2835.48129403,0.00025,30]
[331047069,1720044213172,-710.33237908,0.00026,30]
[331047070,1720044213202,-150.0,0.00026106,120]
[331047071,1720044213227,-293.03757193,0.0002739,30]
[331047072,1720044213253,-200.0,0.00027397,60]
[331047073,1720044213281,-1208.0,0.00027443,30]
[331047074,1720044213305,-150.0,0.00027519,120]
[331047075,1720044213329,-200.0,0.00028,30]
[331047076,1720044213352,-2964.18308257,0.00028465,120]
[331047077,1720044213378,-173.61,0.00028641,120]
[331047078,1720044213402,-410.0,0.00029,120]
[331047079,1720044213432,-888.0,0.00029205,120]
[331047080,1720044213460,-150.0,0.00029542,120]
[331047081,1720044213486,-1303.77585541,0.0003,30]
[331047082,1720044213516,-400.29566388,0.0003,30]
[331047083,1720044213540,-576.16704084,0.0003,30]
[331047084,1720044213564,-1000.0,0.0003,120]
[331047085,1720044213589,-275.25318399,0.0003,120]
[331047086,1720044213613,-200.0,0.0003,60]
[331047087,1720044213639,-274.0,0.0003,120]
[331047088,1720044213662,-25000.0,0.0003,120]
[331047089,1720044213688,-1145.7,0.0003,30]
[331047090,1720044213716,-1000.0,0.0003,30]
[331047091,1720044213740,-1000.0,0.0003,30]
[331047092,1720044213764,-1556.28114472,0.0003,30]
[331047093,1720044213789,-200.0,0.00030137,60]
[331047094,1720044213815,-671.90178067,0.00030137,30]
[331047095,1720044213842,-2964.18308257,0.00030465,120]
[331047096,1720044213868,-548.0,0.00030613,30]
[331047097,1720044213896,-250.0,0.000308,30]
[331047098,1720044213924,-1000.0,0.00031,120]
[331047099,1720044213951,-1000.0,0.00031,120]
[331047100,1720044214011,-524.26762298,0.000314,30]
[331047101,1720044214036,-884.75,0.00031506,31]
[331047102,1720044214061,-1000.0,0.00032,120]
[331047103,1720044214086,-500.0,0.00032,120]
[331047104,1720044214116,-1000.0,0.00032,120]
[331047105,1720044214141,-4767.0,0.00032,30]
[331047106,1720044214167,-2964.18308257,0.00032465,120]
[331047107,1720044214194,-576.39,0.00032876,120]
[331047108,1720044214223,-576.39,0.00032876,120]
[331047109,1720044214246,-576.39,0.00032876,120]
[331047110,1720044214270,-576.39,0.00032876,120]
[331047111,1720044214296,-576.39,0.00032876,120]
[331047112,1720044214322,-576.39,0.00032876,120]
[331047113,1720044214347,-576.39,0.00032876,120]
[331047114,1720044214376,-576.39,0.00032876,120]
[331047115,1720044214399,-576.39,0.00032876,120]
[331047116,1720044214643,-576.39,0.00032876,120]
[331047117,1720044214669,-576.39,0.00032876,120]
[331047118,1720044214692,-576.39,0.00032876,120]
[331047119,1720044214715,-576.39,0.00032876,120]
[331047120,1720044214739,-576.39,0.00032876,120]
[331047121,1720044214763,-576.39,0.00032876,120]
[331047122,1720044214786,-576.39,0.00032876,120]
[331047123,1720044214813,-576.39,0.00032876,120]
[331047124,1720044214835,-576.39,0.00032876,120]
[331047125,1720044214859,-576.39,0.00032876,120]
[331047126,1720044214884,-576.39,0.00032876,120]
[331047127,1720044214908,-576.39,0.00032876,120]
[331047128,1720044214934,-576.39,0.00032876,120]
[331047129,1720044214958,-576.39,0.00032876,120]
[331047130,1720044214982,-576.41353282,0.00032876,120]
[331047131,1720044215022,-500.0,0.00032876,120]
[331047132,1720044215049,-500.0,0.00032876,120]
[331047133,1720044215074,-500.0,0.00032876,120]
[331047134,1720044215098,-154.7095645,0.00032876,120]
[331047135,1720044215128,-884.75,0.00032876,34]
[331047136,1720044215152,-200.0,0.00032877,60]
[331047137,1720044215180,-500.0,0.00033,120]
[331047138,1720044215206,-1000.0,0.00033,120]
[331047139,1720044215230,-797.62332888,0.00033,120]
[331047140,1720044215253,-288.71621689,0.00033,120]
[331047141,1720044215279,-1637.9,0.00033151,120]
[331047142,1720044215304,-2416.0,0.00033241,120]
[331047143,1720044215328,-768.0,0.00033674,30]
[331047144,1720044215351,-159.79071401,0.00033811,40]
[331047145,1720044215375,-1000.0,0.00034,120]
[331047146,1720044215401,-500.0,0.00034,120]
[331047147,1720044215426,-1000.0,0.00034,120]
[331047148,1720044215452,-884.75,0.00034246,37]
[331047149,1720044215476,-2964.18308257,0.00034465,120]
[331047150,1720044215500,-2000.0,0.00034567,31]
[331047151,1720044215526,-500.0,0.00034931,32]
[331047152,1720044215551,-1944.26781101,0.00035,30]
[331047153,1720044215575,-1000.0,0.00035,120]
[331047154,1720044215603,-500.0,0.00035,120]
[331047155,1720044215629,-156.65305213,0.00035,120]
[331047156,1720044215654,-632.56,0.00035,30]
[331047157,1720044215679,-301.160783,0.00035,120]
[331047158,1720044215709,-1354.51739997,0.00035,30]
[331047159,1720044215735,-33251.27482407,0.00035,30]
[331047160,1720044215765,-2600013.35012524,0.00035,30]
[331047161,1720044215790,-5593.24874901,0.00035423,40]
[331047162,1720044215816,-4025.39717417,0.00035423,40]
[331047163,1720044215840,-1500.0,0.000355,120]
[331047164,1720044215864,-500.0,0.00035616,90]
[331047165,1720044215888,-500.0,0.00035616,90]
[331047166,1720044215913,-500.0,0.00035616,90]
[331047167,1720044215942,-500.0,0.00035616,90]
[331047168,1720044215967,-500.0,0.00035616,90]
[331047169,1720044215992,-500.0,0.00035616,90]
[331047170,1720044216019,-500.0,0.00035616,90]
[331047171,1720044216043,-500.0,0.00035616,90]
[331047172,1720044216066,-500.0,0.00035616,90]
[331047173,1720044216090,-500.0,0.00035616,90]
[331047174,1720044216119,-500.0,0.00035616,90]
[331047175,1720044216145,-500.0,0.00035616,90]
[331047176,1720044216169,-500.0,0.00035616,90]
[331047177,1720044216194,-500.0,0.00035616,90]
[331047178,1720044216220,-500.0,0.00035616,90]
[331047179,1720044216244,-500.0,0.00035616,90]
[331047180,1720044216269,-500.0,0.00035616,90]
[331047181,1720044216294,-500.0,0.00035616,90]
[331047182,1720044216320,-551.72552397,0.00035616,90]
[331047183,1720044216343,-168.96087391,0.00035616,90]
[331047184,1720044216366,-500.0,0.00035616,42]
[331047185,1720044216390,-884.75,0.00035616,40]
[331047186,1720044216414,-200.0,0.00035616,60]
[331047187,1720044216438,-1000.0,0.00035718,30]
[331047188,1720044216466,-1000.0,0.00035972,30]
[331047189,1720044216491,-206.65146835,0.0003599,120]
[331047190,1720044216514,-1000.0,0.00036,120]
[331047191,1720044216537,-250.0,0.00036,120]
[331047192,1720044216561,-500.0,0.00036,120]
[331047193,1720044216587,-1000.0,0.00036225,30]
[331047194,1720044216611,-500.0,0.00036301,52]
[331047195,1720044216635,-2964.18308257,0.00036465,120]
[331047196,1720044216660,-1000.0,0.00036479,30]
[331047197,1720044216682,-1000.0,0.00036733,30]
[331047198,1720044216706,-500.0,0.00036986,62]
[331047199,1720044216729,-884.75,0.00036986,43]
[331047200,1720044216752,-1000.0,0.00036986,30]
[331047201,1720044216774,-1530.0,0.00037,120]
[331047202,1720044216799,-500.0,0.00037,120]
[331047203,1720044216822,-1075.0,0.00037042,30]
[331047204,1720044216845,-1000.0,0.0003724,30]
[331047205,1720044216873,-1000.0,0.00037494,30]
[331047206,1720044216898,-500.0,0.00037671,72]
[331047207,1720044216922,-1000.0,0.00037747,30]
[331047208,1720044216946,-5000.0,0.000378,46]
[331047209,1720044216970,-7846.41883757,0.000378,70]
[331047210,1720044216993,-150.365776,0.00037999,120]
[331047211,1720044217016,-235.67095199,0.00038,120]
[331047212,1720044217039,-428.08595559,0.00038,30]
[331047213,1720044217062,-238.59655973,0.00038,30]
[331047214,1720044217085,-1000.0,0.00038,120]
[331047215,1720044217110,-440982.92398459,0.00038,30]
[331047216,1720044217278,-483.41225835,0.00038,120]
[331047217,1720044217339,-1357.71330667,0.00038,120]
[331047218,1720044217364,-11146.93651824,0.00038,90]
[331047219,1720044217388,-1000.0,0.00038001,30]
[331047220,1720044217415,-5813.51168883,0.000382,47]
[331047221,1720044217438,-1000.0,0.00038255,30]
[331047222,1720044217467,-500.0,0.00038356,82]
[331047223,1720044217492,-884.75,0.00038356,46]
[331047224,1720044217518,-274.19233028,0.00038356,60]
[331047225,1720044217541,-1153.53905565,0.000384,33]
[331047226,1720044217566,-159.55346489,0.000384,33]
[331047227,1720044217590,-2964.18308257,0.00038465,120]
[331047228,1720044217613,-992.18192029,0.000385,120]
[331047229,1720044217637,-1000.0,0.00038508,30]
[331047230,1720044217659,-613.84037139,0.000387,30]
[331047231,1720044217682,-1000.0,0.00038762,30]
[331047232,1720044217710,-5000.0,0.000388,48]
[331047233,1720044217733,-4381.32692796,0.000388,30]
[331047234,1720044217757,-1721451.14679592,0.000388,30]
[331047235,1720044222271,-139885.37733996,0.000388,30]
[331047236,1720044222296,-897.20419496,0.000389,30]
[331047237,1720044222320,-186.79853346,0.00039,120]
[331047238,1720044222344,-500.0,0.00039,120]
[331047239,1720044222368,-150.0,0.00039,120]
[331047240,1720044222393,-2651.48163754,0.00039,120]
[331047241,1720044222418,-2780.32748808,0.00039,120]
[331047242,1720044222441,-1000.0,0.00039016,30]
[331047243,1720044222467,-500.0,0.00039041,120]
[331047244,1720044222490,-2000.0,0.00039148,36]
[331047245,1720044222513,-5000.0,0.000392,49]
[331047246,1720044222538,-1000.0,0.00039269,30]
[331047247,1720044222561,-25000.0,0.00039354,120]
[331047248,1720044222584,-1000.0,0.00039523,30]
[331047249,1720044222608,-2594.0,0.000396,30]
[331047250,1720044222631,-2216.59209285,0.000397,60]
[331047251,1720044222653,-500.0,0.00039726,120]
[331047252,1720044222677,-884.75,0.00039726,49]
[331047253,1720044222700,-1000.0,0.00039777,30]
[331047254,1720044222726,-5000.0,0.000398,50]
[331047255,1720044222951,-37990.63034628,0.000398,60]
[331047256,1720044222978,-408.0,0.00039996,90]
[331047257,1720044223002,-250.0,0.00039999,30]
[331047258,1720044223028,-50000.0,0.0004,30]
[331047259,1720044223057,-50000.0,0.0004,40]
[331047260,1720044223082,-151.0,0.0004,120]
[331047261,1720044223110,-172.33333333,0.0004,120]
[331047262,1720044223133,-477.12749073,0.0004,30]
[331047263,1720044223164,-1074.13415835,0.0004,120]
[331047264,1720044223191,-252.36600203,0.0004,30]
[331047265,1720044223218,-496.66073668,0.0004,120]
[331047266,1720044223246,-1000.0,0.0004,120]
[331047267,1720044223273,-285.07019165,0.0004,60]
[331047268,1720044223300,-1269.76378972,0.0004,120]
[331047269,1720044223328,-323.36722269,0.0004,120]
[331047270,1720044223358,-5000.0,0.0004,30]
[331047271,1720044223387,-330.08035176,0.0004,120]
[331047272,1720044223415,-200.0,0.0004,120]
[331047273,1720044223449,-500.0,0.0004,120]
[331047274,1720044223474,-25000.0,0.0004,120]
[331047275,1720044223509,-2118.77528883,0.0004,120]
[331047276,1720044223533,-821.7454652,0.0004,120]
[331047277,1720044223561,-3593.66153983,0.0004,120]
[331047278,1720044223589,-2476.05203349,0.0004,60]
[331047279,1720044223623,-187.0,0.0004,120]
[331047280,1720044223652,-4164.76,0.0004,30]
[331047281,1720044223682,-1008.0,0.0004,60]
[331047282,1720044223720,-4187.30922828,0.0004,120]